bitfinex-derivatives/quotes_SOLF0:USTF0_20250901
["timestamp","ask_amount","ask_price","bid_price","bid_amount"]
[1756750541259,23.98,199.12,199.08,12.34906635]
[1756750541453,23.98,199.12,199.09,4.50906635]
[1756750541657,0.64,199.14,199.02,7.84]
[1756750541859,23.32,199.13,199.04,7.84]
[1756750542059,23.32,199.13,199.05,4.50532073]
[1756750542358,23.32,199.13,199.06,4.50532073]
[1756750542559,23.32,199.13,199.07,4.50532073]
[1756750542759,23.96,199.13,199.08,12.34532073]
[1756750542955,0.64,199.12,199.09,4.50532073]
[1756750543251,0.64,199.12,199.02,7.84]
[1756750543457,0.64,199.12,199.03,4.50239947]
[1756750543659,0.64,199.12,199.04,4.50239947]
[1756750543859,0.64,199.12,199.05,4.50239947]
[1756750544059,352.51,199.2,199.06,4.50239947]
[1756750544260,3.46396554,199.15,199.07,4.50239947]
[1756750544454,3.46396554,199.15,199.08,4.50239947]
[1756750544659,124.12,199.14,199.05,7.84]
[1756750544957,124.12,199.14,199.06,4.50242409]
[1756750545154,124.12,199.14,199.07,4.50242409]
[1756750545359,124.12,199.14,199.08,4.50242409]
[1756750545557,124.12,199.14,199.05,7.84]
[1756750545759,0.64,199.13,199.06,4.50189965]
[1756750545958,124.12,199.14,199.01,7.84]
[1756750545959,0.64,199.11,199.01,7.84]
[1756750546161,0.64,199.11,199.02,4.50331346]
[1756750546360,0.64,199.11,199.03,4.50331346]
[1756750546558,0.64,199.11,199.04,12.34331346]
[1756750546855,0.64,199.11,199.05,4.50331346]
[1756750547056,126.94396554,199.14,199.04,7.84]
[1756750547364,0.64,199.13,199.05,4.50104703]
[1756750547558,0.64,199.1,199.0,7.84]
[1756750547761,20.58,199.11,199.03,7.84]
[1756750548057,20.58,199.11,199.05,7.84]
[1756750548058,42.7,199.11,199.05,7.84]
[1756750548260,0.64,199.14,199.07,7.84]
[1756750548461,23.24,199.13,199.07,7.84]
[1756750549957,0.64,199.14,199.07,7.84]
[1756750550359,23.06,199.13,199.07,7.84]
[1756750550861,0.64,199.14,199.07,7.84]
[1756750551062,44.96,199.13,199.07,7.84]
[1756750552361,0.64,199.12,199.03,7.84]
[1756750552561,23.2,199.13,199.05,7.84]
[1756750552759,23.2,199.13,199.07,7.84]
[1756750554965,23.84,199.13,199.07,7.84]
[1756750555462,0.64,199.1,198.98,10.66396554]
[1756750555667,0.64,199.08,198.99,8.3987883]
[1756750555970,0.64,199.08,199.0,4.48816587]
[1756750556264,0.64,199.08,198.98,10.66396554]
[1756750556265,0.64,199.06,198.98,7.84]
[1756750556469,0.64,199.06,198.99,4.48920764]
[1756750556665,5.58,199.05,199.0,4.48920764]
[1756750556872,0.64,199.04,199.0,0.03502882]
[1756750557569,5.58,199.05,199.0,0.03502882]
[1756750557869,0.64,199.04,199.0,0.03502882]
[1756750558073,5.58,199.05,199.0,0.03502882]
[1756750558465,0.64,199.04,199.0,0.03502882]
[1756750558965,0.64,199.03,199.0,0.03502882]
[1756750559165,0.64,199.01,199.0,0.03502882]
[1756750559872,9.04,199.02,199.0,0.03502882]
[1756750560067,0.64,199.02,199.0,0.03502882]
[1756750560276,4.22,199.03,199.0,0.03502882]
[1756750560771,0.64,199.02,199.0,0.03502882]
[1756750561170,4.86,199.02,199.0,0.03502882]
[1756750561973,0.64,199.01,199.0,0.03502882]
[1756750564073,10.86,199.02,199.0,0.03502882]
[1756750564277,0.64,199.04,199.0,0.03502882]
[1756750564574,15.11,199.17,199.01,7.84]
[1756750564772,0.64,199.11,199.02,7.84]
[1756750564981,0.64,199.11,199.03,4.48443232]
[1756750565175,0.64,199.11,199.04,4.48453934]
[1756750565376,0.64,199.11,199.02,7.84]
[1756750565581,0.64,199.11,199.03,4.48639939]
[1756750565783,0.64,199.11,199.02,7.84]
[1756750566078,24.86,199.1,199.03,4.4870856]
[1756750566279,24.86,199.1,199.02,7.84]
[1756750566479,24.86,199.1,199.03,4.48996465]
[1756750566779,0.64,199.09,198.99,2.82396554]
[1756750566979,0.64,199.09,199.0,4.4727493]
[1756750567175,0.64,199.09,198.99,2.82396554]
[1756750567176,0.64,199.09,199.01,4.4727493]
[1756750567383,0.64,199.09,198.99,2.82396554]
[1756750567581,0.64,199.09,199.0,4.47498799]
[1756750567778,45.8,199.08,199.02,7.84]
[1756750568082,45.8,199.08,199.04,8.21]
[1756750568283,46.43,199.08,199.04,8.21]
[1756750568479,45.8,199.08,199.04,8.21]
[1756750568678,2.82396554,199.14,199.03,8.21]
[1756750568878,22.4,199.13,199.06,8.21]
[1756750569078,51.76,199.12,199.06,8.21]
[1756750569877,0.63,199.11,199.02,2.82396554]
[1756750570086,0.63,199.11,199.03,4.47842102]
[1756750570285,0.63,199.11,199.04,4.4810158]
[1756750570487,0.63,199.11,199.02,2.82396554]
[1756750570683,0.63,199.11,199.03,4.48118526]
[1756750570875,0.63,199.11,199.04,4.48118526]
[1756750571076,0.63,199.11,199.02,2.82396554]
[1756750571282,0.63,199.11,199.03,4.48132338]
[1756750571482,0.63,199.11,199.02,2.82396554]
[1756750571680,2.82396554,199.08,198.97,8.21]
[1756750571988,5.56,199.08,199.0,8.21]
[1756750572192,26.78,199.08,199.01,4.48278149]
[1756750572381,26.78,199.08,199.02,4.48278149]
[1756750572581,26.78,199.08,199.03,12.69278149]
[1756750572786,26.78,199.08,199.03,8.21]
[1756750573178,27.41,199.08,199.03,8.21]
[1756750573386,0.63,199.08,199.03,8.21]
[1756750573579,49.03,199.08,199.04,4.4864324]
[1756750573884,49.03,199.08,198.99,2.82396554]
[1756750573885,69.57,199.08,198.99,11.03396554]
[1756750574078,69.57,199.08,199.0,8.41608506]
[1756750574279,69.57,199.08,199.01,4.48745167]
[1756750574482,69.57,199.08,199.02,4.48745167]
[1756750574782,68.94,199.08,199.03,4.48745167]
[1756750574981,68.94,199.08,198.99,8.21]
[1756750575183,68.94,199.08,199.0,4.49141835]
[1756750575388,68.94,199.08,199.01,4.49141835]
[1756750575585,68.94,199.08,199.02,4.49141835]
[1756750575783,0.63,199.07,199.03,4.49141835]
[1756750575983,68.94,199.08,198.99,8.21]
[1756750575984,69.57,199.08,198.99,8.21]
[1756750576188,68.94,199.08,199.0,4.49401353]
[1756750576386,0.63,199.04,199.01,4.49401353]
[1756750576589,0.63,199.04,198.95,8.21]
[1756750576782,0.63,199.04,198.96,8.4396111]
[1756750576981,0.63,199.04,198.97,4.49997788]
[1756750577177,0.63,199.04,198.98,4.49997788]
[1756750577387,0.63,199.04,198.99,4.49997788]
[1756750577587,0.63,199.04,198.95,8.21]
[1756750577785,70.1,199.03,198.96,8.4454523]
[1756750578089,70.1,199.03,198.97,4.50293755]
[1756750578286,0.63,199.02,198.98,4.50293755]
[1756750578483,70.1,199.03,198.99,4.50293755]
[1756750578691,0.63,199.01,198.91,11.03396554]
[1756750578987,0.63,199.01,198.92,8.44547873]
[1756750579188,0.63,199.01,198.93,8.44547873]
[1756750579390,0.63,198.98,198.94,4.50612637]
[1756750579689,2.82396554,198.99,198.95,4.50612637]
[1756750579885,0.63,198.98,198.96,4.50612637]
[1756750580085,0.63,198.98,198.97,4.50612637]
[1756750580687,1.13,198.98,198.97,4.50612637]
[1756750580989,1.13,198.98,198.87,8.21]
[1756750581202,2.82396554,198.96,198.88,8.45260288]
[1756750581491,26.26,198.95,198.89,8.45260288]
[1756750581684,0.63,198.94,198.9,8.45260288]
[1756750581882,0.63,198.94,198.91,4.51008058]
[1756750582091,0.63,198.94,198.87,8.21]
[1756750582295,0.63,198.94,198.88,8.45215534]
[1756750582588,0.63,198.94,198.89,8.45215534]
[1756750582782,0.63,198.94,198.9,4.50837262]
[1756750582983,0.63,198.94,198.91,4.50837262]
[1756750583188,0.63,198.94,198.92,4.50837262]
[1756750583387,0.63,198.94,198.87,8.21]
[1756750583388,0.63,198.94,198.93,4.50837262]
[1756750583983,1.13,198.94,198.93,4.50837262]
[1756750584389,1.13,198.94,198.87,8.21]
[1756750584691,3.45396554,198.89,198.88,4.50449583]
[1756750584890,3.45396554,198.89,198.78,8.21]
[1756750585092,3.45396554,198.89,198.79,3.93838613]
[1756750585393,124.16,198.88,198.8,3.93838613]
[1756750585686,0.63,198.85,198.81,3.93838613]
[1756750585996,0.63,198.85,198.78,8.21]
[1756750586185,0.63,198.85,198.79,3.93526005]
[1756750586389,0.63,198.85,198.8,12.14526005]
[1756750586588,0.63,198.85,198.8,8.21]
[1756750587495,21.9,198.84,198.75,8.21]
[1756750587690,42.12,198.84,198.77,8.21]
[1756750587890,42.12,198.84,198.78,3.93196336]
[1756750588193,2.82396554,198.86,198.77,8.21]
[1756750588383,61.34,198.85,198.78,3.93350943]
[1756750588587,61.34,198.85,198.77,8.21]
[1756750588784,69.74,198.84,198.78,3.93123627]
[1756750588991,0.63,198.9,198.77,8.21]
[1756750589194,90.40396554,198.89,198.79,8.21]
[1756750589494,2.82396554,198.89,198.79,8.21]
[1756750589691,124.18,198.88,198.79,8.21]
[1756750590194,124.2,198.87,198.79,8.21]
[1756750590694,124.18,198.86,198.79,8.21]
[1756750590889,2.82396554,198.89,198.79,8.21]
[1756750591084,0.63,198.9,198.79,8.21]
[1756750591393,124.2,198.89,198.8,2.82396554]
[1756750591591,124.2,198.89,198.81,8.21]
[1756750591789,124.2,198.88,198.81,8.21]
[1756750591986,124.2,198.87,198.81,8.21]
[1756750592892,124.2,198.86,198.78,7.35086554]
[1756750593094,124.2,198.86,198.79,8.21]
[1756750593796,124.2,198.87,198.79,8.21]
[1756750594685,124.83,198.87,198.79,8.21]
[1756750595491,124.2,198.87,198.79,8.21]
[1756750596196,0.63,198.9,198.79,8.21]
[1756750596590,124.2,198.89,198.79,8.21]
[1756750596994,124.22,198.88,198.79,8.21]
[1756750597492,0.63,198.87,198.79,8.21]
[1756750597899,0.63,198.87,198.81,0.03310818]
[1756750600602,124.87,198.86,198.81,8.02310818]
[1756750601102,124.22,198.85,198.82,7.99]
[1756750601701,124.22,198.84,198.82,7.99]
[1756750601901,0.65,198.86,198.82,7.99]
[1756750602101,124.22,198.85,198.82,7.99]
[1756750602499,0.65,198.91,198.82,7.99]
[1756750602701,124.22,198.9,198.82,7.99]
[1756750603200,124.22,198.89,198.82,7.99]
[1756750604103,0.65,198.88,198.82,7.99]
[1756750607009,0.65,198.88,198.81,7.99]
[1756750607210,124.22,198.87,198.81,7.99]
[1756750607809,338.47,198.92,198.83,2.82396554]
[1756750608006,337.82,198.92,198.89,2.82396554]
[1756750608510,337.82,198.92,198.9,7.99]
[1756750608713,337.82,198.92,198.89,2.82396554]
[1756750609010,124.22,198.93,198.89,2.82396554]
[1756750609309,0.65,198.99,198.9,7.99]
[1756750609509,124.22,198.98,198.92,2.82396554]
[1756750610810,124.22,198.98,198.9,7.99]
[1756750610811,0.65,198.97,198.9,7.99]
[1756750611011,0.65,198.97,198.86,2.82396554]
[1756750611411,124.22,198.98,198.86,2.82396554]
[1756750611614,0.65,198.97,198.86,2.82396554]
[1756750612913,0.65,198.97,198.87,7.99]
[1756750613416,22.6,198.96,198.87,7.99]
[1756750614719,0.65,198.97,198.87,7.99]
[1756750614720,44.06,198.95,198.87,7.99]
[1756750615218,44.71,198.95,198.87,7.99]
[1756750615615,44.06,198.95,198.86,2.82396554]
[1756750615818,0.65,198.94,198.86,2.82396554]
[1756750616415,64.44,198.93,198.86,2.82396554]
[1756750616618,0.65,198.92,198.83,10.81396554]
[1756750617721,3.47396554,198.96,198.84,7.99]
[1756750618018,22.56,198.95,198.84,7.99]
[1756750618921,3.47396554,198.96,198.84,7.99]
[1756750619118,22.56,198.95,198.85,3.9430246]
[1756750619317,22.56,198.95,198.84,7.99]
[1756750619516,43.98,198.94,198.85,3.94626586]
[1756750619716,43.98,198.94,198.86,3.94658513]
[1756750619917,43.98,198.94,198.84,7.99]
[1756750620117,43.98,198.94,198.85,3.94658513]
[1756750620321,43.98,198.94,198.86,3.94658513]
[1756750620622,43.98,198.94,198.84,7.99]
[1756750620821,43.98,198.94,198.86,7.99]
[1756750621320,43.98,198.94,198.87,3.95170755]
[1756750621520,43.98,198.94,198.86,7.99]
[1756750621826,64.32,198.93,198.88,7.99]
[1756750622012,64.32,198.93,198.87,7.99]
[1756750622214,64.32,198.93,198.89,7.99]
[1756750622419,64.32,198.93,198.87,7.99]
[1756750622625,64.26,198.94,198.88,3.95274278]
[1756750622825,64.26,198.94,198.9,7.99]
[1756750623131,84.2,198.94,198.86,2.82396554]
[1756750623322,84.2,198.94,198.88,7.99]
[1756750623623,84.2,198.94,198.9,7.99]
[1756750624418,83.56,198.94,198.86,10.81396554]
[1756750624617,83.56,198.94,198.87,3.95417454]
[1756750624821,83.56,198.94,198.88,3.95417454]
[1756750625022,0.64,198.93,198.83,2.82396554]
[1756750625222,0.64,198.93,198.85,7.99]
[1756750625423,0.64,198.93,198.86,3.95522034]
[1756750625728,2.82396554,198.97,198.87,3.95522034]
[1756750625929,101.88,198.96,198.88,11.94522034]
[1756750626222,0.64,198.95,198.86,2.82396554]
[1756750626428,0.64,198.95,198.87,3.956484]
[1756750626628,0.64,198.95,198.88,3.956484]
[1756750626926,0.64,198.95,198.86,2.82396554]
[1756750627126,0.64,198.95,198.87,3.95669384]
[1756750627326,0.64,198.95,198.86,2.82396554]
[1756750627627,0.64,198.95,198.87,3.957222]
[1756750627827,0.64,198.95,198.86,2.82396554]
[1756750628325,0.64,198.95,198.87,7.8]
[1756750629624,2.82396554,198.97,198.87,7.8]
[1756750629824,22.92,198.96,198.9,7.8]
[1756750630327,0.64,199.02,198.89,2.82396554]
[1756750630521,124.16,199.01,198.93,7.8]
[1756750632025,0.64,199.02,198.93,7.8]
[1756750632231,124.16,199.01,198.93,7.8]
[1756750634034,124.16,199.01,198.89,7.8]
[1756750634035,0.64,198.96,198.89,7.8]
[1756750634327,2.82396554,198.94,198.84,7.8]
[1756750634528,80.34,198.93,198.85,3.94939649]
[1756750634831,80.34,198.93,198.84,7.8]
[1756750635022,80.34,198.93,198.85,3.94981058]
[1756750635221,80.34,198.93,198.84,7.8]
[1756750635528,87.84,198.92,198.86,7.8]
[1756750637131,105.76,198.95,198.88,7.8]
[1756750639127,105.76,198.95,198.83,7.8]
[1756750639128,0.64,198.94,198.83,7.8]
[1756750639330,0.64,198.94,198.84,3.93156497]
[1756750639531,0.64,198.94,198.85,3.93156497]
[1756750639830,3.46396554,198.94,198.83,7.8]
[1756750640129,0.64,198.94,198.85,2.82396554]
[1756750640328,122.66,198.93,198.86,11.73283881]
[1756750640531,122.66,198.93,198.86,7.8]
[1756750641035,0.64,198.94,198.87,3.93136645]
[1756750641332,0.64,198.94,198.86,7.8]
[1756750641532,0.64,198.94,198.87,3.93116305]
[1756750641733,0.64,198.94,198.86,7.8]
[1756750641934,2.82396554,198.97,198.87,3.93110462]
[1756750642134,22.84,198.96,198.88,2.82396554]
[1756750642334,0.64,198.95,198.88,2.82396554]
[1756750642933,0.64,198.95,198.86,7.8]
[1756750643134,0.64,198.95,198.87,3.93052979]
[1756750643433,22.84,198.96,198.86,7.8]
[1756750643934,0.64,198.95,198.86,7.8]
[1756750644337,22.84,198.96,198.86,7.8]
[1756750644639,0.64,198.95,198.83,2.82396554]
[1756750644834,22.84,198.96,198.84,3.93187213]
[1756750645031,0.64,198.95,198.85,3.93187213]
[1756750645235,0.64,198.95,198.83,2.82396554]
[1756750645434,0.64,198.95,198.84,3.93185003]
[1756750645739,2.82396554,198.94,198.82,7.8]
[1756750645941,2.82396554,198.92,198.83,3.93321526]
[1756750646137,0.64,198.91,198.84,3.93321526]
[1756750646439,0.64,198.91,198.82,7.8]
[1756750646634,0.64,198.91,198.83,3.93421052]
[1756750646837,0.64,198.91,198.84,3.93421052]
[1756750647038,0.64,198.91,198.82,7.8]
[1756750647238,0.64,198.91,198.83,3.93421052]
[1756750647438,0.64,198.91,198.84,3.93421052]
[1756750647641,0.64,198.91,198.82,7.8]
[1756750647831,0.64,198.91,198.83,3.93492459]
[1756750648134,0.64,198.91,198.84,3.93492459]
[1756750648440,0.64,198.91,198.82,7.8]
[1756750648636,0.64,198.91,198.83,3.93508026]
[1756750648837,0.64,198.91,198.84,3.93508026]
[1756750649036,0.64,198.91,198.82,7.8]
[1756750649237,0.64,198.91,198.83,3.93499252]
[1756750649437,0.64,198.91,198.84,3.93537802]
[1756750649637,0.64,198.91,198.82,7.8]
[1756750649837,0.64,198.91,198.83,3.93541975]
[1756750650033,24.18,198.9,198.84,3.93541975]
[1756750650237,24.18,198.9,198.82,7.8]
[1756750650541,24.18,198.9,198.83,3.93554177]
[1756750650742,24.18,198.9,198.84,3.93554177]
[1756750650938,24.18,198.9,198.82,7.8]
[1756750651137,24.18,198.9,198.83,3.93573762]
[1756750651339,24.18,198.9,198.84,3.93573762]
[1756750651539,24.18,198.9,198.82,7.8]
[1756750651739,24.18,198.9,198.83,3.93615118]
[1756750651940,24.18,198.9,198.82,7.8]
[1756750651941,24.18,198.9,198.84,3.93615118]
[1756750652141,24.18,198.9,198.82,7.8]
[1756750652342,0.64,198.91,198.83,3.93592339]
[1756750652539,45.9,198.9,198.84,3.93592339]
[1756750652841,0.64,198.91,198.85,11.73657609]
[1756750653042,22.92,198.9,198.84,7.8]
[1756750653239,0.64,198.95,198.86,10.62396554]
[1756750653435,124.78,198.95,198.87,3.9366098]
[1756750653639,337.96,198.98,198.9,7.8]
[1756750653838,124.14,198.97,198.9,7.8]
[1756750654237,337.96,198.98,198.9,7.8]
[1756750654438,337.96,198.98,198.91,3.93304899]
[1756750654439,124.14,198.97,198.91,3.93304899]
[1756750654641,124.14,198.96,198.9,7.8]
[1756750654839,124.14,198.96,198.92,7.8]
[1756750657244,337.96,198.98,198.92,7.8]
[1756750657440,124.14,198.97,198.93,3.93061433]
[1756750657647,337.96,198.98,198.92,2.82396554]
[1756750657944,337.96,198.98,198.94,7.76]
[1756750657945,462.1,198.98,198.94,7.76]
[1756750658243,462.73,198.98,198.92,2.82396554]
[1756750658445,462.73,198.98,198.93,11.69019376]
[1756750658643,462.73,198.98,198.93,7.76]
[1756750658840,462.73,198.98,198.93,7.79491801]
[1756750659036,462.73,198.98,198.93,0.03491801]
[1756750659238,462.1,198.98,198.94,7.76]
[1756750659545,462.1,198.98,198.93,0.03491801]
[1756750659735,0.63,198.97,198.93,0.03491801]
[1756750659933,462.1,198.98,198.94,7.76]
[1756750660144,462.1,198.98,198.93,0.03491801]
[1756750660345,462.1,198.98,198.94,7.76]
[1756750660540,462.1,198.98,198.93,0.03491801]
[1756750660745,462.1,198.98,198.95,2.82396554]
[1756750660945,124.14,198.98,198.97,7.76]
[1756750661142,124.14,198.98,198.97,12.18663672]
[1756750661343,124.12,199.03,198.97,12.18663672]
[1756750661540,124.12,199.03,198.98,6.75060226]
[1756750661736,124.12,199.03,198.98,2.82396554]
[1756750661939,340.78396554,199.1,198.98,10.58396554]
[1756750662241,124.75,199.09,198.98,10.58396554]
[1756750662445,124.75,199.09,199.02,0.03530833]
[1756750663947,0.63,199.09,199.02,0.03530833]
[1756750664142,124.1,199.08,199.02,0.03530833]
[1756750664545,0.63,199.07,199.02,0.03530833]
[1756750665346,2.82396554,199.05,199.02,0.03530833]
[1756750665551,0.63,199.03,199.02,0.03530833]
[1756750666841,124.71,199.03,199.02,0.03530833]
[1756750667744,0.03274338,199.05,199.02,0.03530833]
[1756750667939,124.71,199.04,199.02,0.03530833]
[1756750668844,124.08,199.03,199.02,0.03530833]
[1756750669544,0.03274338,199.05,199.03,7.76]
[1756750669750,124.11274338,199.05,199.03,7.76]
[1756750671646,124.09274338,199.05,199.02,0.03530833]
[1756750671847,124.09274338,199.05,199.03,7.76]
[1756750673750,124.09274338,199.05,199.02,0.03530833]
[1756750675454,0.63,199.04,199.02,0.03530833]
[1756750675853,124.09274338,199.05,199.03,7.76]
[1756750676952,0.03274338,199.05,199.02,0.03530833]
[1756750677251,0.03274338,199.05,199.04,10.58396554]
[1756750681654,0.03274338,199.05,199.04,2.82396554]
[1756750682960,0.03274338,199.05,199.04,10.58396554]
[1756750683553,0.63,199.14,199.05,7.76]
[1756750683757,0.66,199.19,199.1,7.76]
[1756750683955,124.02,199.18,199.1,7.76]
[1756750684258,124.02,199.17,199.1,7.76]
[1756750684459,0.66,199.16,199.09,2.82396554]
[1756750684856,124.02,199.17,199.12,0.03728907]
[1756750686159,0.66,199.16,199.12,0.03728907]
[1756750687054,124.02,199.17,199.12,0.03728907]
[1756750687354,0.66,199.16,199.12,0.03728907]
[1756750687760,124.02,199.17,199.12,0.03728907]
[1756750688958,124.0,199.16,199.12,0.03728907]
[1756750689148,0.65,199.15,199.12,0.03728907]
[1756750689355,124.0,199.16,199.12,0.03728907]
[1756750689756,0.65,199.15,199.12,0.03728907]
[1756750690055,124.0,199.16,199.12,0.03728907]
[1756750690454,0.65,199.15,199.12,0.03728907]
[1756750690656,124.0,199.16,199.12,0.03728907]
[1756750690853,0.65,199.15,199.12,0.03728907]
[1756750691057,124.0,199.16,199.12,0.03728907]
[1756750691258,0.65,199.19,199.12,0.03728907]
[1756750691460,123.98,199.18,199.12,0.03728907]
[1756750691862,123.98,199.17,199.13,7.84]
[1756750693066,123.98,199.16,199.13,7.84]
[1756750694570,123.96,199.17,199.13,7.84]
[1756750695271,0.65,199.19,199.13,7.84]
[1756750695272,338.41,199.23,199.13,7.84]
[1756750695465,123.96,199.22,199.13,7.84]
[1756750695865,123.96,199.22,199.15,2.82396554]
[1756750696069,123.96,199.22,199.16,0.03415198]
[1756750697774,0.65,199.21,199.16,0.03415198]
[1756750698171,123.96,199.22,199.16,0.03415198]
[1756750698475,0.65,199.21,199.16,0.03415198]
[1756750699173,123.96,199.22,199.16,0.03415198]
[1756750699475,0.65,199.22,199.16,0.03415198]
[1756750699670,123.94,199.21,199.16,0.03415198]
[1756750699874,0.65,199.2,199.16,0.03415198]
[1756750700969,123.94,199.21,199.16,0.03415198]
[1756750701572,0.65,199.2,199.16,7.87415198]
[1756750701779,124.59,199.2,199.16,7.87415198]
[1756750702277,123.94,199.2,199.16,7.87415198]
[1756750702473,0.65,199.19,199.16,0.03415198]
[1756750703276,123.94,199.2,199.16,0.03415198]
[1756750703776,0.65,199.19,199.16,0.03415198]
[1756750704572,123.94,199.2,199.16,0.03415198]
[1756750705773,0.65,199.19,199.16,0.03415198]
[1756750706474,123.94,199.2,199.16,0.03415198]
[1756750706678,0.65,199.19,199.16,0.03415198]
[1756750707480,123.94,199.2,199.16,0.03415198]
[1756750707686,0.65,199.19,199.16,0.03415198]
[1756750710282,123.94,199.2,199.16,0.03415198]
[1756750710582,0.65,199.19,199.16,0.03415198]
[1756750711285,123.94,199.2,199.16,0.03415198]
[1756750711479,0.65,199.19,199.16,0.03415198]
[1756750711675,123.94,199.2,199.16,0.03415198]
[1756750711876,0.65,199.19,199.16,0.03415198]
[1756750712080,123.94,199.2,199.16,0.03415198]
[1756750712585,0.65,199.19,199.16,0.03415198]
[1756750713483,123.94,199.2,199.16,0.03415198]
[1756750713880,0.65,199.19,199.16,0.03415198]
[1756750714078,123.94,199.2,199.16,0.03415198]
[1756750714281,0.65,199.19,199.16,0.03415198]
[1756750715881,123.94,199.2,199.16,0.03415198]
[1756750716382,0.65,199.19,199.16,0.03415198]
[1756750716788,123.94,199.2,199.16,0.03415198]
[1756750716989,0.65,199.19,199.16,0.03415198]
[1756750717183,0.65,199.17,199.16,0.03415198]
[1756750717991,123.88,199.18,199.07,2.82396554]
[1756750718288,123.88,199.17,199.08,3.91521831]
[1756750718491,123.88,199.17,199.07,2.82396554]
[1756750718492,0.63,199.16,199.07,2.82396554]
[1756750718696,0.63,199.16,199.09,7.85]
[1756750718893,123.88,199.15,199.09,7.85]
[1756750719392,0.63,199.14,199.09,7.85]
[1756750719694,0.63,199.14,199.07,2.82396554]
[1756750719891,0.63,199.14,199.04,2.82396554]
[1756750720191,2.82396554,199.14,199.05,3.91692366]
[1756750720491,2.82396554,199.14,199.03,7.85]
[1756750720791,2.82396554,199.14,199.04,3.91903408]
[1756750720991,0.63,199.13,199.03,7.85]
[1756750721193,0.63,199.13,199.04,3.91904793]
[1756750721490,2.82396554,199.14,199.05,3.91904793]
[1756750721691,0.63,199.13,199.03,7.85]
[1756750721893,0.63,199.13,199.04,3.92028195]
[1756750722190,2.82396554,199.14,199.03,7.85]
[1756750722587,0.63,199.13,199.03,7.85]
[1756750722791,2.82396554,199.14,199.03,7.85]
[1756750722990,0.63,199.13,199.01,2.82396554]
[1756750723186,0.63,199.13,199.02,3.92405628]
[1756750723385,2.82396554,199.11,199.03,3.92405628]
[1756750723586,2.82396554,199.11,199.01,2.82396554]
[1756750723587,2.82396554,199.08,198.98,2.82396554]
[1756750723786,0.63,199.06,198.99,3.92601187]
[1756750723992,0.63,199.06,198.96,7.85]
[1756750724185,0.63,199.06,198.97,3.92677481]
[1756750724392,0.63,199.06,198.98,3.92677481]
[1756750724689,0.63,199.06,198.96,7.85]
[1756750724893,123.88,199.07,198.97,3.92631052]
[1756750725088,123.88,199.07,198.98,3.92631052]
[1756750725296,123.88,199.07,198.96,7.85]
[1756750725490,0.63,199.06,198.97,3.92426617]
[1756750725693,123.88,199.07,198.96,7.85]
[1756750725990,0.63,199.06,198.97,3.92460372]
[1756750726187,0.63,199.06,198.96,7.85]
[1756750726394,123.88,199.07,198.96,7.85]